Cogmind - Beta 13 @@@ ROGUE MODE // 2024.05.22 @ 13:42:53 Player: Lunace Result: Destroyed by IU-CT4(B) with Slug Cannon Performance ------------- Evolutions (3) 1500 Regions Visited (10) 2000 Robots Destroyed (56) 280 Value Destroyed (2736) 2736 Prototype IDs (31) 620 Alien Tech Used (0) 0 Bonus (902) 902 TOTAL SCORE: 8038 Bonus ------- High Alert Combat Kills 50 Follower Combat Kills 199 Entered Garrisons 200 Aligned with FarCom 300 Acquired ECA 300 Friendly Fire -147 Cogmind --------- Core Integrity 0/700 Matter 295/300 Energy 100/100 System Corruption 2% Temperature Cool (0) Movement Core (250) Ox4 Location -7/Zion Parts ------- > --- POWER (1) -------- (None) > --- PROPULSION (4) --- (None) > --- UTILITY (6) ------ Medium Storage Unit Improved Melee Analysis Suite Improved Armor Integrity Analyzer Experimental System Shield > --- WEAPON (2) ------- Longsword +1 > --- INVENTORY (10) --- Experimental Sensor Array Experimental Terrain Scan Processor Encrypted Comm Array 0b10 Decoder Chip [Scout] Advanced Shield Generator Improved Component Analysis Suite Wave Gun Assault Rifle Remote Datajack Improved Plasma Cutter Peak State ------------ > --- POWER ------------ Neutrino Core > --- PROPULSION ------- Improved Aluminum Leg Carbon-fiber Leg Carbon-fiber Leg Carbon-fiber Leg > --- UTILITY ---------- Medium Storage Unit Improved Melee Analysis Suite Improved Melee Analysis Suite Advanced Shield Generator Advanced Hacking Suite Improved Component Analysis Suite > --- WEAPON ----------- Wave Gun Longsword +1 > --- INVENTORY -------- Experimental Sensor Array Light Armor Plating Improved Medium Armor Plating Advanced Shield Generator System Restoration Module Assault Rifle Rocket Launcher Improved Plasma Cutter [Rating: 61] Favorites ----------- Power Neutrino Core Engine Ion Engine Power Core Neutrino Core Propulsion Carbon-fiber Leg Treads Improved Treads Leg Carbon-fiber Leg Hover Unit Makeshift Hover Unit Utility Medium Storage Unit Device Hardlight Generator Storage Medium Storage Unit Processor Improved Melee Analysis Suite Hackware Advanced Hacking Suite Protection Light Armor Plating Weapon Longsword +1 Energy Gun Wave Gun Ballistic Gun Assault Rifle Ballistic Cannon Mass Driver Launcher Rocket Launcher Slashing Weapon Longsword +1 Build | -11 -10 -10 -10 -9 -8 -8 -7 -7 -7 -7 ------- Run | Yrd Mat Min Exi Min Mat Gar Fac Low Low Zio Slots Evolved 6 | . . . . . 4 . 2 . . . Power . | . . . . . . . . . . . Propulsion 2 | . . . . . 2 . . . . . Utility 4 | . . . . . 2 . 2 . . . Weapon . | . . . . . . . . . . . Parts Attached 63 | 7 5 1 1 3 4 12 9 4 6 11 Power 4 | 1 . 1 . . . 2 . . . . Engine 3 | 1 . 1 . . . 1 . . . . Core 1 | . . . . . . 1 . . . . Reactor . | . . . . . . . . . . . Propulsion 16 | 2 2 . . . 2 4 . 2 1 3 Treads 1 | . . . . . . . . . 1 . Leg 14 | 2 2 . . . 2 4 . 2 . 2 Wheel . | . . . . . . . . . . . Hover 1 | . . . . . . . . . . 1 Flight . | . . . . . . . . . . . Utility 31 | 2 1 . 1 2 2 4 9 . 2 8 Device 9 | 1 . . . 1 1 . 3 . 2 1 Storage 3 | 1 . . 1 . . . 1 . . . Processor 8 | . . . . . . . 2 . . 6 Hackware 3 | . . . . . . 1 1 . . 1 Protection 8 | . 1 . . 1 1 3 2 . . . Artifact . | . . . . . . . . . . . Weapon 12 | 2 2 . . 1 . 2 . 2 3 . Energy Gun 2 | . . . . . . 1 . . 1 . Energy Cannon . | . . . . . . . . . . . Ballistic Gun 3 | 2 1 . . . . . . . . . Ballistic Cannon 1 | . . . . . . 1 . . . . Launcher 4 | . 1 . . . . . . 1 2 . Special Weapon . | . . . . . . . . . . . Impact Weapon . | . . . . . . . . . . . Slashing Weapon 2 | . . . . 1 . . . 1 . . Piercing Weapon . | . . . . . . . . . . . Special Melee Weapon . | . . . . . . . . . . . Unidentified Prototypes 7 | . . . . 1 . . . . . 6 Parts Lost 19 | . . . . . . 3 . 2 8 6 Power 1 | . . . . . . . . . 1 . Propulsion 10 | . . . . . . 1 . 2 4 3 Utility 6 | . . . . . . 1 . . 3 2 Weapon 2 | . . . . . . 1 . . . 1 Highest Loss Streak 6 | . . . . . . 2 . 2 6 3 To Critical Strikes 1 | . . . . . . . . . 1 . Average Slot Usage (%) 87 | . 100 100 100 100 96 97 97 90 86 55 Engine 3 | . 14 14 14 14 9 3 . . . . Core 3 | . . . . . . 5 7 7 5 . Leg 23 | . 28 28 28 28 36 35 30 21 21 . Device 5 | . 6 . . . 6 9 7 7 6 4 Storage 8 | . 14 14 14 14 9 9 7 7 7 7 Processor 7 | . . . . . . . 12 15 13 13 Hackware 5 | . . . . . . 1 7 7 7 13 Protection 8 | . 7 14 14 14 18 16 6 7 5 . Energy Gun 3 | . . . . . . 5 7 7 4 . Ballistic Gun 1 | . 22 14 14 1 . . . . . . Launcher 4 | . 6 14 14 14 9 1 . 4 2 6 Slashing Weapon 6 | . . . . 12 9 9 7 2 7 7 Naked Turns . | . . . . . . . . . . . Heaviest Build 47 | 14 18 18 23 24 32 47 44 45 44 22 Greatest Support 60 | 20 26 26 26 26 52 58 58 60 60 23 Greatest Overweight (x) 13 | 1 . . . . . . . 1 13 7 Average Overweight (x) . | . . . . . . . . . . 3 Largest Inventory Capacity 10 | 8 8 8 10 10 10 10 10 10 10 10 Average Capacity 9 | 7 8 8 8 10 10 10 10 10 10 10 Most Carried 10 | 2 8 8 8 10 8 10 10 8 9 10 Average Carried 8 | 1 5 7 7 8 5 7 8 7 7 9 Final Capacity 10 | 8 8 8 10 10 10 10 10 10 10 10 Final Carried 10 | 2 7 8 8 9 5 8 8 8 7 10 Class Distribution -------------------- 75% | Mutant 15% | Hacker-Mutant 8% | Scavenger-Mutant Dominant Class ---------------- Mutant | -10/Materials Mutant | -10/Mines Mutant | -10/Exiles Mutant | -9/Mines Mutant | -8/Materials Mutant | -8/Garrison Mutant | -7/Factory Mutant | -7/Lower Caves Mutant | -7/Lower Caves Hacker-Mutant | -7/Zion Resources | -11 -10 -10 -10 -9 -8 -8 -7 -7 -7 -7 ----------- Run | Yrd Mat Min Exi Min Mat Gar Fac Low Low Zio Matter Collected 1200 | 261 47 . 99 30 . 250 80 94 223 116 Remotely . | . . . . . . . . . . . Salvage Created 1802 | 23 72 . . 79 . 595 371 232 265 165 Parts 106 | 3 7 . . 11 . 30 19 10 16 10 Haulers Intercepted 2 | . . . . . . . 2 . . . Recyclers Shooed . | . . . . . . . . . . . Parts Field Recycled . | . . . . . . . . . . . Retrieved Matter . | . . . . . . . . . . . Parts Self-Destructed 17 | . . . . . . . . 6 11 . Prevented . | . . . . . . . . . . . Kills | -11 -10 -10 -10 -9 -8 -8 -7 -7 -7 -7 ------- Run | Yrd Mat Min Exi Min Mat Gar Fac Low Low Zio Combat Hostiles Destroyed 38 | . 3 . . . . 14 3 5 12 1 Melee 15 | . . . . . . 9 3 . 2 1 Guns 3 | . . . . . . . . 2 1 . AOE 20 | . 3 . . . . 5 . 3 9 . Classes Destroyed 13 | 1 2 . . . . 4 3 . 1 2 Worker 4 | . 1 . . 1 . . 2 . . . Tunneler 4 | 1 . . . 3 . . . . . . Hauler 2 | . . . . . . . 2 . . . Recycler 1 | . . . . . . . 1 . . . Swarmer 7 | . . . . . . 2 . 1 4 . Grunt 16 | . 3 . . . . 5 1 3 4 . Brawler 3 | . . . . . . 1 . . 2 . Sentry 5 | . . . . . . 4 . 1 . . Hunter 2 | . . . . . . 2 . . . . Programmer 3 | . . . . . . . 2 . 1 . Zionite 6 | . . . . . . . . . . 6 Thug 1 | . . . . . . 1 . . . . Butcher 1 | . . . . . . . . . . 1 Mutant 1 | . . . . . . . . . 1 . Best Kill Streak 7 | 1 4 . . 3 . 7 1 5 4 4 Combat Bots Only 7 | . 3 . . . . 7 1 5 4 1 Max Kills in Single Turn 2 | 1 1 . . 1 . 2 1 2 2 1 Gunslinging . | . . . . . . . . . . . Exploded 2 | . 1 . . . . 2 . 2 2 . Melee 1 | . . . . . . 1 1 . 1 1 Uniques/NPCs Destroyed . | . . . . . . . . . . . Combat | -11 -10 -10 -10 -9 -8 -8 -7 -7 -7 -7 -------- Run | Yrd Mat Min Exi Min Mat Gar Fac Low Low Zio Hostile Shots Fired 404 | . 9 . . . . 96 31 78 50 140 Missed 150 | . 2 . . . . 25 12 33 24 54 Damage Taken 3135 | . 75 . . . . 853 273 284 481 1169 Core 840 | . 12 . . . . 110 48 14 82 574 Absorbed by Shields 466 | . . . . . . 176 104 126 60 . Ignored by Resistances 22 | . . . . . . 22 . . . . Core Remaining (%) 91 | 100 . . . 95 . 80 . . . . Volleys Fired 66 | 4 8 . . . . 23 5 5 21 . Largest 2 | 2 2 . . . . 1 1 2 1 . Hottest 114 | 40 50 . . . . 81 81 114 81 . Shots Fired 76 | 8 9 . . . . 23 5 9 21 1 Gun 43 | 8 5 . . . . 13 5 4 8 . Cannon . | . . . . . . . . . . . Launcher 33 | . 4 . . . . 10 . 5 13 1 Special . | . . . . . . . . . . . Kinetic 13 | 8 5 . . . . . . . . . Thermal 30 | . . . . . . 13 5 4 8 . Explosive 33 | . 4 . . . . 10 . 5 13 1 Electromagnetic . | . . . . . . . . . . . Robot Hit Streak 5 | 3 5 . . . . 3 4 5 5 . Robot Miss Streak 4 | 1 1 . . . . 1 1 1 4 1 Penetration Max . | . . . . . . . . . . . Secondary Targets . | . . . . . . . . . . . Shots Hit Robots 107 | 6 3 . . 4 . 25 22 6 17 24 Core Hits 79 | 2 6 . . . . 20 8 11 23 9 Critical Kills . | . . . . . . . . . . . Critical Parts Destroyed . | . . . . . . . . . . . Critical Strikes 4 | . . . . . . 2 1 . . 1 Sever 4 | . . . . . . 2 1 . . 1 Melee Attacks 99 | . . . . 4 . 43 20 1 7 24 Impact . | . . . . . . . . . . . Slashing 99 | . . . . 4 . 43 20 1 7 24 Piercing . | . . . . . . . . . . . Sneak Attacks 10 | . . . . 4 . 1 5 . . . Combat Hostiles 1 | . . . . . . 1 . . . . Follow-up Attacks . | . . . . . . . . . . . Damage Inflicted 6322 | 66 308 . . 382 . 1579 1185 374 1520 908 Guns 398 | 66 19 . . . . . 97 70 146 . Cannons . | . . . . . . . . . . . Explosions 2230 | . 289 . . . . 577 . 242 1094 28 Melee 3694 | . . . . 382 . 1002 1088 62 280 880 Ramming . | . . . . . . . . . . . Kinetic 85 | 66 19 . . . . . . . . . Thermal 313 | . . . . . . . 97 70 146 . Explosive 2230 | . 289 . . . . 577 . 242 1094 28 Electromagnetic . | . . . . . . . . . . . Impact . | . . . . . . . . . . . Slashing 3694 | . . . . 382 . 1002 1088 62 280 880 Piercing . | . . . . . . . . . . . Highest Corruption 5 | . . . . . . . 2 1 5 2 Average Corruption 1 | . . . . . . . 1 1 1 2 Corruption Purged 5 | . . . . . . . 2 . 3 . Corruption Blocked . | . . . . . . . . . . . Effects 29 | . . . . . . . . 7 10 12 Message Errors 11 | . . . . . . . . 3 4 4 Matter Fused 6 | . . . . . . . . 1 3 2 Heat Flow Errors 3 | . . . . . . . . 2 1 . Energy Discharges 4 | . . . . . . . . . 2 2 Data Loss (minor) 4 | . . . . . . . . 1 . 3 Misfires 1 | . . . . . . . . . . 1 Overload Shots . | . . . . . . . . . . . Overflow Damage 437 | . 14 . . 222 . 14 144 . 42 1 Projectiles . | . . . . . . . . . . . Explosions 39 | . 14 . . . . . . . 25 . Melee 398 | . . . . 222 . 14 144 . 17 1 Knockbacks . | . . . . . . . . . . . Impact . | . . . . . . . . . . . Kinetic . | . . . . . . . . . . . Secondary . | . . . . . . . . . . . Self-Inflicted Damage 95 | . . . . . . 38 . . 57 . Shots 5 | . . . . . . 3 . . 2 . Rammed . | . . . . . . . . . . . Targets Rammed . | . . . . . . . . . . . Kicked . | . . . . . . . . . . . Crushed . | . . . . . . . . . . . Highest Temperature 231 | . 30 . . . . 222 231 215 213 . Average Temperature 83 | . 18 . . . . 79 114 99 81 . Received Heat Transfer 437 | . 42 . . . . 157 72 70 69 27 Siege Activations . | . . . . . . . . . . . Robots Corrupted . | . . . . . . . . . . . Combat Hostiles . | . . . . . . . . . . . Parts Fried . | . . . . . . . . . . . Impact Corruptions . | . . . . . . . . . . . Robots Melted . | . . . . . . . . . . . Combat Hostiles . | . . . . . . . . . . . Parts Melted 1 | . . . . . . 1 . . . . Heat Transferred 481 | . . . . . . . 148 111 222 . Parts Sabotaged . | . . . . . . . . . . . Parts Stolen . | . . . . . . . . . . . Parts Stripped . | . . . . . . . . . . . Power Chain Reactions . | . . . . . . . . . . . Alert | -11 -10 -10 -10 -9 -8 -8 -7 -7 -7 -7 ------- Run | Yrd Mat Min Exi Min Mat Gar Fac Low Low Zio Peak Influence 974 | 5 111 43 . 20 . 974 511 . . . Initial 511 | . 3 43 . . . 2 511 . . . Average 330 | . 45 43 . 4 . 569 295 . . . Maximum Alert Level 3 | . . . . . . 3 2 . . . Low Security (%) 45 | 100 100 100 . 100 100 15 39 . . . Level 1 11 | . . . . . . 1 30 . . . Level 2 31 | . . . . . . 52 30 . . . Level 3 11 | . . . . . . 30 . . . . Level 4 . | . . . . . . . . . . . Level 5 . | . . . . . . . . . . . High Security . | . . . . . . . . . . . Max Security . | . . . . . . . . . . . Squads Dispatched 5 | . 1 1 . . 1 . 2 . . . Investigation 4 | . 1 1 . . 1 . 1 . . . Extermination 1 | . . . . . . . 1 . . . Reinforcement . | . . . . . . . . . . . Assault . | . . . . . . . . . . . Garrison . | . . . . . . . . . . . Intercept . | . . . . . . . . . . . Searches Triggered . | . . . . . . . . . . . Construction Impeded . | . . . . . . . . . . . Haulers Reinforced . | . . . . . . . . . . . Active Scanning Responses . | . . . . . . . . . . . Cargo Convoy Interrupts . | . . . . . . . . . . . Stealth | -11 -10 -10 -10 -9 -8 -8 -7 -7 -7 -7 --------- Run | Yrd Mat Min Exi Min Mat Gar Fac Low Low Zio Distress Signals . | . . . . . . . . . . . Communications Jammed . | . . . . . . . . . . . Distress Signals . | . . . . . . . . . . . Times Spotted 68 | . 4 . . . . 20 7 7 12 18 Peak Tracking Total 7 | . 3 . . . . 6 3 5 4 7 Tactical Retreats 5 | . . . . . . . 1 1 . 3 Traps | -11 -10 -10 -10 -9 -8 -8 -7 -7 -7 -7 ------- Run | Yrd Mat Min Exi Min Mat Gar Fac Low Low Zio Traps Triggered 5 | . 1 . . . . 1 3 . . . Indirectly . | . . . . . . . . . . . Trap Hack Attempts . | . . . . . . . . . . . Triggered . | . . . . . . . . . . . Disarmed . | . . . . . . . . . . . Reprogrammed . | . . . . . . . . . . . Reused . | . . . . . . . . . . . Traps Extracted . | . . . . . . . . . . . Installed . | . . . . . . . . . . . Triggered 2 | . . . . . . . 2 . . . Machines | -11 -10 -10 -10 -9 -8 -8 -7 -7 -7 -7 ---------- Run | Yrd Mat Min Exi Min Mat Gar Fac Low Low Zio Machines Disabled 9 | . . . . . . 8 . . 1 . Max in Single Turn 2 | . . . . . . 2 . . 1 . Garrison Relay 4 | . . . . . . 4 . . . . Phase Generator 1 | . . . . . . 1 . . . . Machines Repaired . | . . . . . . . . . . . Machines Dismantled . | . . . . . . . . . . . Machines Sabotaged . | . . . . . . . . . . . Overloaded Fab Kills . | . . . . . . . . . . . Hacking | -11 -10 -10 -10 -9 -8 -8 -7 -7 -7 -7 --------- Run | Yrd Mat Min Exi Min Mat Gar Fac Low Low Zio Machines Accessed 21 | . 1 1 2 . 2 4 11 . . . Terminals 8 | . . . . . . 4 4 . . . Fabricators 4 | . . . . . . . 4 . . . Repair Stations 1 | . . . . . . . 1 . . . Recycling Units 2 | . 1 . . . . . 1 . . . Scanalyzers 2 | . . . . . 1 . 1 . . . Garrison Access 1 | . . . . . 1 . . . . . Total Hacks 37 | . 3 1 2 . 4 6 21 . . . Successful 23 | . 2 1 2 . 2 4 12 . . . Failed 14 | . 1 . . . 2 2 9 . . . Catastrophic 2 | . . . . . 1 . 1 . . . Database Lockouts . | . . . . . . . . . . . Manual 15 | . 2 . 1 . . 1 11 . . . Terminals 16 | . . . . . . 6 10 . . . Fabricators 6 | . . . . . . . 6 . . . Repair Stations 2 | . . . . . . . 2 . . . Recycling Units 4 | . 3 . . . . . 1 . . . Scanalyzers 5 | . . . . . 3 . 2 . . . Garrison Access 1 | . . . . . 1 . . . . . Terminal Hacks 9 | . . 1 2 . . 4 2 . . . Record 1 | . . . 1 . . . . . . . Part Schematic 1 | . . . . . . . 1 . . . Open Door 2 | . . 1 . . . 1 . . . . Branch Access Points 1 | . . . . . . . 1 . . . Emergency Access Points 1 | . . . . . . 1 . . . . Garrison Registry 1 | . . . . . . 1 . . . . Security Stations 1 | . . . . . . 1 . . . . Derelict Proto ID Bank 1 | . . . 1 . . . . . . . Fabricator Hacks 4 | . . . . . . . 4 . . . Network Status 2 | . . . . . . . 2 . . . Build 2 | . . . . . . . 2 . . . Repair Station Hacks 1 | . . . . . . . 1 . . . Scan Component 1 | . . . . . . . 1 . . . Recycling Unit Hacks 1 | . . . . . . . 1 . . . Report Inventory 1 | . . . . . . . 1 . . . Scanalyzer 3 | . . . . . 1 . 2 . . . Insert Component 2 | . . . . . 1 . 1 . . . Analyze 1 | . . . . . . . 1 . . . Garrison Access Hacks 1 | . . . . . 1 . . . . . Unlock Access 1 | . . . . . 1 . . . . . Unauthorized Hacks 4 | . 2 . . . . . 2 . . . Terminals 2 | . . . . . . . 2 . . . Botnet 2 | . . . . . . . 2 . . . Fabricators . | . . . . . . . . . . . Repair Stations . | . . . . . . . . . . . Recycling Units 2 | . 2 . . . . . . . . . Monitor 1 | . 1 . . . . . . . . . Recyclers 1 | . 1 . . . . . . . . . Scanalyzers . | . . . . . . . . . . . Garrison Access . | . . . . . . . . . . . Data Cores Recovered . | . . . . . . . . . . . Used . | . . . . . . . . . . . Hacking Detections 11 | . . . . . 1 1 9 . . . Full Trace Events 1 | . . . . . 1 . . . . . Feedback Events . | . . . . . . . . . . . Feedback Blocked . | . . . . . . . . . . . Robot Schematics Acquired 3 | . . . . . . . . . . 3 Robots Built 3 | . . . . . . . 3 . . . Authchips 1 | . . . . . . . 1 . . . Time 67 | . . . . . . . 67 . . . Total Robot Build Rating 12 | . . . . . . . 12 . . . Part Schematics Acquired 17 | . . . . . . . 2 . . 15 Parts Built 2 | . . . . . . . 2 . . . Authchips . | . . . . . . . . . . . Time 106 | . . . . . . . 106 . . . Total Part Build Rating 12 | . . . . . . . 12 . . . Parts Repaired . | . . . . . . . . . . . Time . | . . . . . . . . . . . Parts Recycled . | . . . . . . . . . . . Recycled Matter . | . . . . . . . . . . . Retrieved Matter . | . . . . . . . . . . . Retrieved Components . | . . . . . . . . . . . Parts Scanalyzed 1 | . . . . . 1 . . . . . Part Schematics Acquired 1 | . . . . . . . 1 . . . Parts Damaged . | . . . . . . . . . . . Bothacking | -11 -10 -10 -10 -9 -8 -8 -7 -7 -7 -7 ------------ Run | Yrd Mat Min Exi Min Mat Gar Fac Low Low Zio Used RIF Installer . | . . . . . . . . . . . Robots Hacked . | . . . . . . . . . . . Non-combat . | . . . . . . . . . . . Combat . | . . . . . . . . . . . Robot Hacks Applied . | . . . . . . . . . . . Relay Couplers Released 19 | . . . . . . 19 . . . . Machine Destruction 19 | . . . . . . 19 . . . . Fabnet Peak Effective % . | . . . . . . . . . . . Robots Rewired . | . . . . . . . . . . . Allies Hacked . | . . . . . . . . . . . Hacks Repelled . | . . . . . . . . . . . Allies | -11 -10 -10 -10 -9 -8 -8 -7 -7 -7 -7 -------- Run | Yrd Mat Min Exi Min Mat Gar Fac Low Low Zio Total Allies 9 | . . . . 1 . 2 6 . . . Largest Group 4 | . . . . 1 . 2 4 . . . Highest-Rated Group 93 | . . . . 31 . 62 93 . . . Highest-Rated Ally 31 | . . . . 31 . 31 31 . . . Total Orders . | . . . . . . . . . . . Ally Attacks 62 | . . . . . . 36 26 . . . Total Damage 940 | . . . . . . 560 380 . . . Kills 7 | . . . . . . 6 1 . . . Allies Corrupted . | . . . . . . . . . . . Allies Melted 1 | . . . . . . . 1 . . . Intel | -11 -10 -10 -10 -9 -8 -8 -7 -7 -7 -7 ------- Run | Yrd Mat Min Exi Min Mat Gar Fac Low Low Zio Robot Analysis Total . | . . . . . . . . . . . Derelict Logs Recovered 5 | . . . . 2 . . . 1 . 2 Drone Launches . | . . . . . . . . . . . Drone Recoveries . | . . . . . . . . . . . Exploration | -11 -10 -10 -10 -9 -8 -8 -7 -7 -7 -7 ------------- Run | Yrd Mat Min Exi Min Mat Gar Fac Low Low Zio Turns Passed 6211 | 77 210 51 335 487 64 1373 1333 406 648 1227 Spaces Moved 3835 | 46 147 40 277 392 39 827 950 262 445 410 Core 285 | 7 . . . . . . . . 3 275 Treads 173 | . . . . . . . . . 73 100 Legs 3377 | 39 147 40 277 392 39 827 950 262 369 35 Wheels . | . . . . . . . . . . . Hover . | . . . . . . . . . . . Flight . | . . . . . . . . . . . Fastest Speed 50 | 50 120 120 120 120 120 120 120 120 120 120 Average Speed 139 | 111 120 120 120 120 120 120 120 146 129 279 Slowest Speed 700 | 120 120 120 120 120 120 120 120 190 700 400 Overloaded Moves . | . . . . . . . . . . . Propulsion Burnouts . | . . . . . . . . . . . Robots Hopped . | . . . . . . . . . . . Cave-ins Triggered . | . . . . . . . . . . . Exploration Rate (%) 46 | 4 30 9 69 93 7 88 32 53 63 68 Regions Visited 10 Branch Regions 6 Pre-discovered Areas 4 | . . . 1 . . . . 2 . 1 Known Exits Taken 2 | . . . . . 1 . 1 . . . Unknown Exits Taken 7 | 1 1 1 1 1 . . . 1 1 . Scrap Searched 10 | . . . . 2 . . . 1 3 4 Spaces Dug 3 | . . . . . . 1 2 . . . Terrain Destroyed 185 | . 19 . . . . 75 2 18 69 2 Melee 3 | . . . . . . 1 2 . . . Projectile . | . . . . . . . . . . . AOE 182 | . 19 . . . . 74 . 18 69 2 Terrain Rammed . | . . . . . . . . . . . Walls Destroyed . | . . . . . . . . . . . Machines Disabled . | . . . . . . . . . . . Actions | -11 -10 -10 -10 -9 -8 -8 -7 -7 -7 -7 --------- Run | Yrd Mat Min Exi Min Mat Gar Fac Low Low Zio Total 4515 | 61 178 43 280 405 56 1147 1119 273 489 464 Wait 387 | 2 . . . 4 13 222 126 . 10 10 Move 3825 | 45 146 39 276 391 39 825 949 261 444 410 Hop . | . . . . . . . . . . . Pick Up 32 | 3 10 2 1 1 . 8 3 1 1 2 Fast Attach 29 | 6 1 . . . . 4 4 2 1 11 Attach 16 | 1 1 . . 2 4 4 2 . 2 . Detach 7 | . 1 . . 2 . 1 2 . . 1 Swap 18 | . 3 1 1 1 . 4 3 2 3 . Drop 33 | . 8 1 2 . . 10 5 1 . 6 Fire 66 | 4 8 . . . . 23 5 5 21 . Melee 99 | . . . . 4 . 43 20 1 7 24 Ram . | . . . . . . . . . . . Kick . | . . . . . . . . . . . Crush . | . . . . . . . . . . . Escape Stasis 3 | . . . . . . 3 . . . . Rewire . | . . . . . . . . . . . Trap . | . . . . . . . . . . . Miscellaneous . | . . . . . . . . . . . Route ------- -11/Scrapyard -10/Materials (discovered 2 exits: *Min x2) -10/Mines -10/Exiles -9/Mines (discovered 2 exits: *Mat x2) -8/Materials -8/Garrison (discovered 3 exits: *Fac x3) -7/Factory (discovered 3 exits: [*Fac] / *Low x2) -7/Lower Caves -7/Lower Caves -7/Zion History --------- Turn | Location | Event 7 | -11/Scrapyard | Discovered new exit (range 16) 78 | -11/Scrapyard | Entered Materials 239 | -10/Materials | Discovered new exit (range 10) 248 | -10/Materials | Discovered new exit (range 11) 288 | -10/Materials | Entered Mines 291 | -10/Mines | Met a Derelict shopkeep closing up shop 320 | -10/Mines | Build established: Mutant 333 | -10/Mines | Deemed a non-threat by the Exiles lab entrance 334 | -10/Mines | Discovered new exit (range 5) 339 | -10/Mines | Entered Exiles 369 | -10/Exiles | Met 8R-AWN 389 | -10/Exiles | Met EX-HEX 421 | -10/Exiles | Met EX-BIN 435 | -10/Exiles | Aligned with FarCom system 437 | -10/Exiles | Given EX-Vault access code 465 | -10/Exiles | Opened EX-Vault 477 | -10/Exiles | Found Longsword +1 503 | -10/Exiles | Warned to stay clear of 0b10 Research branches 596 | -10/Exiles | Met EX-DEC 615 | -10/Exiles | Learned location of Zion (-7) 658 | -10/Exiles | Discovered new exit (range 14) 674 | -10/Exiles | Left Exiles lab with Longsword +1 674 | -10/Exiles | Entered Mines 770 | -9/Mines | Discovered new exit (range 9) 774 | -9/Mines | Met a Derelict bent on vengeance 782 | -9/Mines | Learned Materials terminal intel 885 | -9/Mines | Discovered new exit (range 6) 890 | -9/Mines | Received a Mining Laser from a helpful Derelict 982 | -9/Mines | Found a damaged Exp. Sensor Array with a note attached 984 | -9/Mines | Found Prototype Device 986 | -9/Mines | Identified Exp. Sensor Array 1161 | -9/Mines | Entered Materials 1161 | -8/Materials | Evolved 4 slots: Propulsion x2, Utility x2 1162 | -8/Materials | Loaded intel: 12 terminal locations 1225 | -8/Materials | Identified exit to Garrison 1225 | -8/Materials | Entered Garrison 1253 | -8/Garrison | Triggered checkpoint 1265 | -8/Garrison | Garrison Relay disabled 1329 | -8/Garrison | Rescued a captive Derelict 1329 | -8/Garrison | Rescued a captive Derelict 1397 | -8/Garrison | Triggered checkpoint 1437 | -8/Garrison | Triggered checkpoint 1437 | -8/Garrison | Triggered checkpoint 1484 | -8/Garrison | Destroyed 7 combat bots 1511 | -8/Garrison | Triggered checkpoint 1527 | -8/Garrison | Garrison Relay disabled 1552 | -8/Garrison | Discovered new exit (range 10) 1687 | -8/Garrison | Discovered new exit (range 10) 1693 | -8/Garrison | Learned Factory security intel 2073 | -8/Garrison | Triggered checkpoint 2073 | -8/Garrison | Build established: Scavenger-Mutant 2179 | -8/Garrison | Garrison Relay disabled 2237 | -8/Garrison | Phase Generator disabled 2265 | -8/Garrison | Discovered new exit (range 10) 2316 | -8/Garrison | Garrison Relay disabled 2338 | -8/Garrison | Discovered new exit (range 84) 2338 | -8/Garrison | Discovered new exit (range 37) 2338 | -8/Garrison | Discovered new exit (range 24) 2373 | -8/Garrison | Attempted to access garrison exit controls, blocked by remote lockdown 2598 | -8/Garrison | Entered Factory 2598 | -7/Factory | Evolved 2 slots: Utility x2 2624 | -7/Factory | Build established: Mutant 2891 | -7/Factory | Allied Derelicts emerged from ambush trap array 3135 | -7/Factory | Fabricated Adv. Shield Generator (x2) 3281 | -7/Factory | Fabricated B-48 Gladiator (x3) 3623 | -7/Factory | Discovered new exit (range 8) 3670 | -7/Factory | Identified exit to Lower Caves 3931 | -7/Factory | Entered Lower Caves 4056 | -7/Lower Caves | Attracted the attention of an 0b10 checkpoint 4077 | -7/Lower Caves | Met a Warlord Commander 4078 | -7/Lower Caves | Learned location of Warlord (-4) 4079 | -7/Lower Caves | Warlord Commander delivered Encrypted Comm Array 4086 | -7/Lower Caves | Found Encrypted Comm Array 4204 | -7/Lower Caves | Encountered a Warlord checkpoint 4304 | -7/Lower Caves | Discovered new exit (range 5) 4337 | -7/Lower Caves | Entered another Lower Caves area 4819 | -7/Lower Caves | Attacked by a delusional Derelict stockpiling parts 4876 | -7/Lower Caves | Lost 6 parts (1p3n2u) 4947 | -7/Lower Caves | Discovered new exit (range 16) 4985 | -7/Lower Caves | Entered Zion 5035 | -7/Zion | System corruption cleaned by Quarantine Array 5097 | -7/Zion | Learned location of Quarantine (-3) 5144 | -7/Zion | Found Prototype Processor 5144 | -7/Zion | Identified Exp. Terrain Scan Processor 5147 | -7/Zion | Found Prototype Hackware 5147 | -7/Zion | Identified Exp. System Shield 5151 | -7/Zion | Found Prototype Processor 5151 | -7/Zion | Identified Exp. Targeting Computer 5164 | -7/Zion | Found Prototype Processor 5164 | -7/Zion | Identified Exp. Target Analyzer 5191 | -7/Zion | Found Exp. Terrain Scan Processor 5436 | -7/Zion | Build established: Hacker-Mutant 5621 | -7/Zion | Found Prototype Device 5621 | -7/Zion | Identified Mobile Refinery Mk. CCLXVII 5999 | -7/Zion | Learned Factory garrison access intel 6080 | -7/Zion | Attacked by Zionites 6153 | -7/Zion | Core integrity fell below 50% 6179 | -7/Zion | Core integrity fell below 20% 6194 | -7/Zion | Spotted E7-IS0(B) 6195 | -7/Zion | Spotted IU-CT4(B) 6205 | -7/Zion | Lost 3 parts (2n1u) 6212 | -7/Zion | Destroyed by IU-CT4(B) with Slug Cannon Last Messages --------------- 06162_ Mak. Hover Unit destroyed. 06164_ 5K-38V(z) pulls a Mak. Sword out of the Twisted Machinery. 06169_ JI-RF1(l) destroyed. CO-CZV(z) bursts out of the Twisted Machinery. 06173_ 5K-38V(z) destroyed. 06174_ CO-CZV(z) pulls a Mak. Laser out of the Twisted Machinery. 06174_ Mobile Refinery Mk. CCLXVII destroyed. 06180_ Acquired Unknown Leg. 06180_ Identified Carbon-fiber Leg. 06190_ CO-CZV(z) overheating. 06205_ CO-CZV(z) heat damages Mak. Laser, Mak. Power Source, Imp. Terrain Scanner, Imp. Carbon-fiber Leg. 06205_ P2-29K(z) pulls a Mak. Hammer out of the Twisted Machinery. 06210_ CO-CZV(z) heat damages Imp. Carbon-fiber Leg. 06212_ Carbon-fiber Leg destroyed. Map ----- +----------------------------------------------------+ | """ """" """#???????????????????????? | | """"" """" "###??????????????????????? | | """#"" """"""" """#??????????????????????? | | """""" """""" ""##??????????????????????? | | """"" "#"#??????????????????????? | | [ """#??????????????????????? | | """ %/ """#??????????????????????? | | """" #"" """""""#"#??????????????????????? | | """"" #"" """"#""##??????????????????????? | | """""""" "" """"#"#??????????????????????? | | #????""" """"#??????????????????????? | | ?????""" ""##??????????????????????? | | ????"" ""##?????????????????????? | | ????"" ""#?????????????????????? | | ????"" """ "##?????????????????????? | | ?????"" """"""""""" ""#??????????????????##?? | | ?????"" """""" """" ""##?????????????????## ## | | ????"" """"" ""#?????????????????## | | ????"" """" """#?#####???????????# | | ????#" "" ""##### "############ | | ????"" "" """###"## """"""""""""#? | | ????#" """" """"""### """"""""""""#?? | | ????"" """" "" ""# #### | | ????"" % BB # | | ???#"" " z zBBBB # | | ???#"" " " """ @;BB ### # | | ???""" """"z z ### """"""""""""## | | ???#"" """ """""####?# """"""""""""### | | ????#"" """" ""#????# "############?## | | ?????"" """ ""#?#??#####????????????## | | ?????"" "" ""#"#???????????????????# | | ?????"" """" """#???????????????????#### | | ?????" """" ""#??????????????????????# | | ??" """" "##??????????????????????# | | ???" ""#??????????????????????# | | ????# """"" "" """#?????????????????????# | | "### """ /*"""" "#"?????????????????????# | | """#"# ""#/!%""""""""##????????????????????# | | """""" """%%! """"""""#????????????????????# | | """""" """" "##????????????????????# | | """" """#???????????????????## | | """""" """#???????????????????# | | #"""""" """#???????????????????# | | """"""" "###???????????????????## | | "#"#""" """""#???????????????????## | | % """"""???????????????????# | | "" # ## % """"""???????????????????## | | "" #% """ ""???????????????????# | | #" " """ /" "" "#???????????????????# | | ""! """ "#???????????????????## | +----------------------------------------------------+ Best States ------------- Heat Dissipation 34 Energy Generation 19 Energy Capacity 315 Matter Stores 300 Matter Capacity 300 Sight Range 16 Terrain Scan Density 10 Armor Coverage 300 Resistance: TH 10 Evasion (%) 55 Melee Accuracy 12 Armor Integrity Analysis 40 Recoil Reduction 1 Offensive Hacking 14 Defensive Hacking 16 Authchip Count 2 Item Schematics ----------------- Exp. Sensor Array | -7/Factory | Scanalyzed Force Booster | -7/Factory | Hacked Mak. Power Source | -7/Zion | Archive Hvy. Machine Gun | -7/Zion | Archive Imp. Carbon-fiber Leg | -7/Zion | Archive Imp. Proton Missile Launcher | -7/Zion | Archive Mak. Sword | -7/Zion | Archive Proton Cannon | -7/Zion | Archive Imp. Melee Analysis Suite | -7/Zion | Archive Wave Gun | -7/Zion | Archive Imp. Weapon Cycler | -7/Zion | Archive Mak. Leg | -7/Zion | Archive Angular Momentum Engine | -7/Zion | Archive Phase Shifter | -7/Zion | Archive Adv. ECM Suite | -7/Zion | Archive Hrd. Heavy Armor Plating | -7/Zion | Archive Flexi-carbon Leg | -7/Zion | Archive Robot Schematics ------------------ M-14 Sweeper | -7/Zion | Archive I-36 Angel | -7/Zion | Archive K-01 Serf | -7/Zion | Archive Fabricated ------------ Adv. Shield Generator | x2 | -7/Factory | Preloaded B-48 Gladiator | x3 | -7/Factory | Preloaded, Authchip Alien Tech Used ----------------- None Achievements -------------- None Challenges ------------ None Game ------ Seed RelayDeliveryNeutralizer Manual? 0 Play Time 00:41:52 Cumulative 209.3 hours Start 2024.05.22 @ 13:02:08 End 2024.05.22 @ 13:42:53 Sessions 1 Manual Loads 0 Difficulty Rogue Special Mode None Game No. 201 Rogue 196 Adventurer 5 Explorer 0 Win Type - Total 3 Types 2/0/0/1/0/0/0/0/0 Lore% 58 Gallery% 78 Achievement% 56 Wizard Run 0 Options --------- Layout 2 ASCII 0 Keyboard 0 Movement Arrows Keybinds 0 Fullscreen 1 Font 24/Terminus Map View 50x44 Zoom Use 0% Tactical HUD 1 Map Filters NONE Filters NONE Steam 1 RUN: 0deaacb6-5337-4845-baa3-0fc170a71896